bitfinex-derivatives/quotes_BTCF0:USTF0_20251125
["timestamp","ask_amount","ask_price","bid_price","bid_amount"]
[1764037621173,0.04919,87681.0,87680.0,0.09280417]
[1764037621374,0.0245,87681.0,87680.0,0.0950022]
[1764037621682,0.04919,87681.0,87680.0,0.0950022]
[1764037624282,0.0245,87681.0,87680.0,0.0950022]
[1764037624780,0.04919,87681.0,87680.0,0.0950022]
[1764037625176,0.04919,87681.0,87680.0,0.05406803]
[1764037626175,0.04919,87681.0,87676.0,0.04093417]
[1764037626386,0.0605994,87677.0,87676.0,0.04093417]
[1764037626583,0.0605994,87677.0,87676.0,0.02848803]
[1764037626984,0.0605994,87677.0,87676.0,0.05406803]
[1764037627186,0.0605994,87677.0,87676.0,0.00219803]
[1764037627378,0.06434,87675.0,87674.0,0.04093417]
[1764037627573,0.0114098,87674.0,87673.0,0.04093417]
[1764037627883,0.06434,87682.0,87681.0,0.05187]
[1764037628185,0.24454,87682.0,87681.0,0.05406803]
[1764037628386,0.06434,87682.0,87681.0,0.05406803]
[1764037628886,0.3608,87708.0,87686.0,0.0632783]
[1764037629070,0.1802,87695.0,87686.0,0.06547633]
[1764037629379,0.1802,87695.0,87686.0,0.10641196]
[1764037629685,0.0359064,87701.0,87694.0,0.0114072]
[1764037629877,0.0245,87701.0,87700.0,0.05406803]
[1764037630077,0.0245,87701.0,87700.0,0.41486803]
[1764037630276,0.04919,87701.0,87700.0,0.05406803]
[1764037632484,0.05019,87701.0,87700.0,0.05406803]
[1764037634183,0.05019,87701.0,87700.0,0.04314213]
[1764037634484,0.05019,87701.0,87700.0,0.06758213]
[1764037635097,0.0623471,87695.0,87694.0,0.06137968]
[1764037635279,0.05094,87693.0,87692.0,0.00017105]
[1764037635579,0.64114,87693.0,87692.0,0.08126688]
[1764037635784,0.59194,87693.0,87692.0,0.08346491]
[1764037635985,0.41174,87693.0,87692.0,0.00017105]
[1764037636185,0.97194,87693.0,87692.0,0.00017105]
[1764037639073,0.59194,87693.0,87692.0,0.00017105]
[1764037639279,0.69194,87693.0,87692.0,0.00017105]
[1764037641085,0.41174,87693.0,87692.0,0.05270908]
[1764037641285,0.3608,87693.0,87692.0,0.05270908]
[1764037641484,0.18016,87695.0,87694.0,0.05034]
[1764037641682,0.18016,87695.0,87694.0,0.05253803]
[1764037642184,0.2311,87695.0,87694.0,0.05253803]
[1764037642389,0.5919,87695.0,87694.0,0.02444]
[1764037642583,0.5919,87695.0,87694.0,0.05034]
[1764037642892,0.2311,87695.0,87694.0,0.05034]
[1764037643392,0.05094,87695.0,87694.0,0.05034]
[1764037643989,0.05094,87695.0,87694.0,0.05253803]
[1764037645086,0.05094,87693.0,87692.0,0.00017105]
[1764037645488,0.41174,87693.0,87692.0,0.00017105]
[1764037646088,0.41174,87693.0,87692.0,0.02461105]
[1764037646491,0.41174,87693.0,87692.0,0.00017105]
[1764037647183,0.41174,87693.0,87692.0,0.05051105]
[1764037647383,0.41174,87693.0,87692.0,0.02461105]
[1764037647586,0.41174,87693.0,87692.0,0.00017105]
[1764037647793,0.86174,87693.0,87692.0,0.00017105]
[1764037648291,0.61174,87693.0,87692.0,0.00017105]
[1764037648995,0.85174,87693.0,87692.0,0.00017105]
[1764037651284,0.57174,87693.0,87692.0,0.00017105]
[1764037652503,0.41174,87693.0,87692.0,0.00017105]
[1764037652994,0.41174,87693.0,87692.0,0.02461105]
[1764037653402,0.41174,87693.0,87692.0,0.00017105]
[1764037653694,0.41174,87693.0,87692.0,0.05051105]
[1764037653894,0.5919,87693.0,87692.0,0.05051105]
[1764037654095,0.5919,87693.0,87692.0,0.05270908]
[1764037656196,0.5919,87693.0,87692.0,0.05051105]
[1764037656602,0.02471,87698.0,87697.0,0.05034]
[1764037656903,0.20483,87698.0,87697.0,0.05253803]
[1764037657299,0.23106,87698.0,87697.0,0.05253803]
[1764037657998,0.23206,87698.0,87697.0,0.05253803]
[1764037660200,0.05194,87698.0,87697.0,0.05253803]
[1764037660400,0.23206,87698.0,87697.0,0.05253803]
[1764037662106,0.001,87698.0,87697.0,0.05253803]
[1764037662406,0.04877,87698.0,87697.0,0.05253803]
[1764037665600,0.001,87698.0,87697.0,0.05253803]
[1764037666002,0.001,87698.0,87697.0,0.45253803]
[1764037666700,0.3608,87710.0,87708.0,0.0467]
[1764037666900,0.3608,87710.0,87708.0,0.04889803]
[1764037667207,0.0114051,87711.0,87708.0,0.40969803]
[1764037667705,0.18008,87715.0,87708.0,0.40969803]
[1764037667901,0.0114052,87710.0,87708.0,0.40969803]
[1764037668107,0.00117105,87709.0,87708.0,0.40969803]
[1764037668910,0.3608,87730.0,87708.0,0.40969803]
[1764037668911,0.4199725,87730.0,87729.0,0.0467]
[1764037669205,0.4199725,87730.0,87729.0,0.04889803]
[1764037669409,0.43116624,87730.0,87729.0,0.02590803]
[1764037670003,0.43116624,87730.0,87729.0,0.00219803]
[1764037670205,0.43316624,87730.0,87729.0,0.02590803]
[1764037670398,0.43316624,87730.0,87729.0,0.04889803]
[1764037671204,0.43316624,87730.0,87729.0,0.02590803]
[1764037671413,0.04777,87722.0,87721.0,0.00017105]
[1764037671707,0.04777,87722.0,87721.0,0.03308026]
[1764037671906,0.04777,87722.0,87721.0,0.05679026]
[1764037672413,0.04777,87722.0,87721.0,0.00236908]
[1764037673113,0.41057,87722.0,87721.0,0.00236908]
[1764037674922,0.80057,87722.0,87721.0,0.00017105]
[1764037675626,0.91456713,87722.0,87721.0,1.05e-06]
[1764037677231,0.0539358,87705.0,87704.0,0.04638]
[1764037677426,0.0539358,87705.0,87704.0,0.04857803]
[1764037678531,0.04253,87705.0,87704.0,0.04857803]
[1764037678831,0.04253,87705.0,87704.0,0.06224803]
[1764037679428,0.04353,87705.0,87704.0,0.04857803]
[1764037681633,0.02124,87702.0,87701.0,0.04638]
[1764037681929,0.0336458,87705.0,87704.0,0.04638]
[1764037682132,0.0549358,87705.0,87704.0,0.04857803]
[1764037684538,0.0549358,87705.0,87696.0,0.0643493]
[1764037684539,0.0539368,87697.0,87696.0,0.0643493]
[1764037684730,0.0539368,87697.0,87696.0,0.00017105]
[1764037684731,0.4147368,87697.0,87696.0,0.00017105]
[1764037685729,0.4147368,87697.0,87696.0,0.04655105]
[1764037687837,0.40333,87697.0,87696.0,0.06241908]
[1764037688243,0.3608,87715.0,87696.0,0.06241908]
[1764037688533,0.04253,87702.0,87701.0,0.04638]
[1764037688729,0.04253,87702.0,87701.0,0.04857803]
[1764037689837,0.04353,87702.0,87701.0,0.04857803]
[1764037690430,0.001,87702.0,87701.0,0.04857803]
[1764037692035,0.02224,87702.0,87701.0,0.04857803]
[1764037692535,0.04493,87702.0,87701.0,0.04857803]
[1764037693241,0.04393,87702.0,87701.0,0.02542803]
[1764037693438,0.04393,87702.0,87701.0,0.00219803]
[1764037693831,0.04393,87702.0,87701.0,0.02409803]
[1764037695035,0.04393,87702.0,87701.0,0.04674803]
[1764037695539,0.04493,87702.0,87701.0,0.04674803]
[1764037695936,0.04393,87702.0,87701.0,0.04674803]
[1764037696136,0.04493,87702.0,87701.0,0.04674803]
[1764037699644,0.04493,87702.0,87701.0,0.00219803]
[1764037701441,0.04493,87702.0,87701.0,0.02409803]
[1764037705140,0.04427,87700.0,87699.0,0.04094825]
[1764037705341,0.0556766,87699.0,87698.0,0.04094825]
[1764037706651,0.4656766,87699.0,87698.0,0.04094825]
[1764037707539,0.4656766,87699.0,87697.0,0.04094825]
[1764037707744,0.0556768,87697.0,87696.0,0.00017105]
[1764037707951,0.6557568,87697.0,87696.0,1.31e-06]
[1764037708141,0.0556779,87689.0,87688.0,0.04094825]
[1764037708347,0.4164779,87689.0,87688.0,0.02409803]
[1764037709048,0.40507,87689.0,87688.0,0.04674803]
[1764037710541,0.40507,87689.0,87688.0,0.04455]
[1764037712052,0.40507,87689.0,87688.0,0.04674803]
[1764037714050,0.04427,87686.0,87685.0,0.04094825]
[1764037714249,0.7608,87689.0,87684.0,0.04094825]
[1764037714250,0.0556784,87685.0,87684.0,0.04094825]
[1764037714454,0.04427,87683.0,87682.0,0.0219]
[1764037714652,0.04427,87683.0,87682.0,0.04674803]
[1764037715355,0.04427,87683.0,87682.0,0.08769628]
[1764037716066,0.05582765,87683.0,87682.0,0.08769628]
[1764037716357,0.05582765,87683.0,87682.0,0.02409803]
[1764037716557,0.05582765,87683.0,87682.0,0.06504628]
[1764037716954,0.05582765,87683.0,87682.0,0.08769628]
[1764037717354,0.05582765,87683.0,87682.0,0.04674803]
[1764037718058,0.04427,87683.0,87682.0,0.04674803]
[1764037718259,0.04427,87683.0,87682.0,0.08769628]
[1764037719254,0.04427,87683.0,87682.0,0.04674803]
[1764037722654,0.04427,87683.0,87682.0,0.02409803]
[1764037722861,0.46427,87683.0,87682.0,0.0219]
[1764037723059,0.04551,87681.0,87680.0,0.06306825]
[1764037723260,0.60631,87681.0,87680.0,0.04094825]
[1764037723460,0.60631,87681.0,87680.0,0.06306825]
[1764037723858,0.60631,87681.0,87680.0,0.06526628]
[1764037724060,0.40631,87681.0,87680.0,0.04690803]
[1764037724261,0.56412,87681.0,87680.0,0.04690803]
[1764037724455,0.384,87681.0,87680.0,0.04690803]
[1764037724657,0.3608,87689.0,87688.0,0.04471]
[1764037724861,0.3608,87689.0,87688.0,0.04690803]
[1764037725558,0.00017105,87694.0,87693.0,0.04471]
[1764037725862,0.00017105,87694.0,87693.0,0.04690803]
[1764037726257,0.02337105,87694.0,87693.0,0.04690803]
[1764037726460,0.00017105,87694.0,87693.0,0.04690803]
[1764037729462,0.00017105,87694.0,87693.0,0.1083304]
[1764037729663,0.02337105,87694.0,87693.0,0.1083304]
[1764037730460,0.00017105,87694.0,87693.0,0.1083304]
[1764037731267,0.0114077,87691.0,87686.0,0.294348]
[1764037731462,0.00017105,87694.0,87693.0,0.04471]
[1764037731665,0.00017105,87694.0,87693.0,0.05685007]
[1764037732667,0.3608,87701.0,87700.0,0.0561165]
[1764037732862,0.53266801,87710.0,87705.0,0.0561158]
[1764037732863,0.0114058,87706.0,87705.0,0.0561158]
[1764037733055,0.01360383,87706.0,87705.0,0.05684847]
[1764037733255,0.3608,87710.0,87709.0,0.0561153]
[1764037733458,0.384,87722.0,87721.0,0.04471]
[1764037733659,0.36299803,87722.0,87721.0,0.04544267]
[1764037733962,0.37440163,87722.0,87721.0,0.04544267]
[1764037734364,0.37440163,87722.0,87721.0,0.05684637]
[1764037734968,0.36299803,87722.0,87721.0,0.09778696]
[1764037735369,0.36299803,87722.0,87721.0,0.05684637]
[1764037735560,0.00219803,87722.0,87721.0,0.05684637]
[1764037735756,0.00319803,87722.0,87721.0,0.05684637]
[1764037737167,0.05174803,87722.0,87721.0,0.04544267]
[1764037738871,0.02639803,87722.0,87721.0,0.04544267]
[1764037739966,0.00319803,87722.0,87721.0,0.04544267]
[1764037740273,0.02777803,87722.0,87721.0,0.04544267]
[1764037740772,0.05312803,87722.0,87721.0,0.04544267]
[1764037741966,0.00319803,87722.0,87721.0,0.04544267]
[1764037742166,0.001,87722.0,87721.0,0.04544267]
[1764037743670,0.02777803,87722.0,87721.0,0.04544267]
[1764037744673,0.05212803,87722.0,87721.0,0.04544267]
[1764037745374,0.05212803,87722.0,87721.0,0.02285267]
[1764037745766,0.0613345,87715.0,87714.0,0.05224]
[1764037746080,0.51353253,87715.0,87714.0,0.00073267]
[1764037746378,0.04993,87714.0,87713.0,0.00017105]
[1764037746574,0.41292803,87714.0,87713.0,0.00017105]
[1764037748270,0.41392803,87714.0,87713.0,0.00017105]
[1764037749378,0.41392803,87714.0,87713.0,0.02655105]
[1764037750170,0.41392803,87714.0,87713.0,0.00017105]
[1764037751870,0.41392803,87714.0,87713.0,0.05210372]
[1764037752474,0.41392803,87714.0,87713.0,0.00090372]
[1764037753980,0.00319803,87714.0,87713.0,0.06261852]
[1764037754285,0.05422803,87714.0,87713.0,0.06261852]
[1764037755376,0.00219803,87714.0,87713.0,0.06261852]
[1764037756276,0.00219803,87714.0,87713.0,0.12389942]
[1764037757075,0.02766803,87714.0,87713.0,0.12389942]
[1764037757578,0.02766803,87714.0,87713.0,0.06261852]
[1764037760988,0.00219803,87714.0,87713.0,0.06261852]
[1764037761987,0.02766803,87714.0,87713.0,0.06261852]
[1764037762188,0.05322803,87714.0,87713.0,0.06261852]
[1764037763891,0.02766803,87714.0,87713.0,0.06261852]
[1764037764087,0.00219803,87714.0,87713.0,0.06261852]
[1764037764994,0.02766803,87714.0,87713.0,0.06261852]
[1764037765196,0.05322803,87714.0,87713.0,0.05121372]
[1764037766096,0.06706803,87714.0,87713.0,0.05121372]
[1764037766299,0.05322803,87714.0,87713.0,0.05121372]
[1764037770014,0.06706803,87714.0,87713.0,0.05121372]
[1764037770904,0.06706803,87714.0,87713.0,0.00090372]
[1764037771313,0.06706803,87714.0,87713.0,0.02639372]
[1764037771614,0.06706803,87714.0,87713.0,0.05121372]
[1764037772706,0.06706803,87714.0,87713.0,0.00090372]
[1764037773011,0.06706803,87714.0,87713.0,0.04190101]
[1764037773210,0.06706803,87714.0,87713.0,0.05121372]
[1764037773707,0.06706803,87714.0,87713.0,0.00090372]
[1764037774112,0.06806803,87714.0,87713.0,0.02639372]
[1764037774608,0.06806803,87714.0,87713.0,0.00090372]
[1764037775011,0.06806803,87714.0,87713.0,0.02639372]
[1764037775407,0.06806803,87714.0,87713.0,0.04190101]
[1764037775607,0.06806803,87714.0,87713.0,0.06739101]
[1764037775913,0.06806803,87714.0,87713.0,0.02639372]
[1764037777910,0.06806803,87714.0,87713.0,0.05121372]
[1764037778506,0.05422803,87714.0,87713.0,0.05121372]
[1764037779215,0.02866803,87714.0,87713.0,0.05121372]
[1764037779821,0.00219803,87714.0,87713.0,0.05121372]
[1764037780121,0.05322803,87714.0,87713.0,0.05121372]
[1764037780720,0.00219803,87714.0,87713.0,0.05121372]
[1764037781209,0.02431803,87714.0,87713.0,0.05121372]
[1764037782819,0.04985803,87714.0,87713.0,0.05121372]
[1764037783921,0.06286803,87714.0,87713.0,0.05121372]
[1764037784218,0.04985803,87714.0,87713.0,0.05121372]
[1764037784814,0.02431803,87714.0,87713.0,0.05121372]
[1764037785312,0.04985803,87714.0,87713.0,0.05121372]
[1764037785514,0.04985803,87714.0,87713.0,0.11275636]
[1764037786021,0.00219803,87714.0,87713.0,0.11275636]
[1764037786406,0.00219803,87714.0,87713.0,0.05121372]
[1764037786721,0.0590638,87721.0,87720.0,0.04773]
[1764037786908,0.0590642,87717.0,87716.0,0.06153901]
[1764037787115,0.06067,87714.0,87713.0,0.00017105]
[1764037787305,0.06286803,87714.0,87713.0,0.00017105]
[1764037787514,0.06286803,87714.0,87690.0,0.01313]
[1764037787515,0.04766,87710.0,87709.0,0.04103301]
[1764037787820,0.04985803,87710.0,87709.0,0.04103301]
[1764037788219,0.0590653,87709.0,87708.0,0.04103301]
[1764037788511,0.06126333,87709.0,87708.0,0.04103301]
[1764037789514,0.04766,87707.0,87706.0,0.04103301]
[1764037789716,0.0590657,87706.0,87705.0,0.04103301]
[1764037790018,0.06126373,87706.0,87705.0,0.04103301]
[1764037790219,0.04766,87705.0,87704.0,0.04103301]
[1764037790421,0.04985803,87705.0,87704.0,0.06360301]
[1764037790814,0.04985803,87705.0,87704.0,0.06433568]
[1764037792013,0.04985803,87705.0,87704.0,0.04176568]
[1764037792223,0.04985803,87705.0,87704.0,0.00073267]
[1764037792617,0.04766,87703.0,87702.0,0.04103301]
[1764037792819,0.04985803,87703.0,87702.0,0.04103301]
[1764037793818,0.04985803,87703.0,87702.0,0.06360301]
[1764037794327,0.04985803,87703.0,87702.0,0.04773]
[1764037794527,0.05085803,87703.0,87702.0,0.04773]
[1764037794843,0.05085803,87703.0,87702.0,0.02257]
[1764037795020,0.05085803,87703.0,87700.0,0.02257]
[1764037795021,0.04766,87701.0,87700.0,0.02257]
[1764037795224,0.04985803,87701.0,87700.0,0.02257]
[1764037795419,0.04985803,87701.0,87700.0,0.04773]
[1764037796117,0.04985803,87701.0,87700.0,0.10923431]
[1764037796522,0.04985803,87701.0,87700.0,0.10996698]
[1764037797227,0.04985803,87701.0,87700.0,0.04846267]
[1764037797729,0.04985803,87701.0,87700.0,0.02257]
[1764037798829,0.04985803,87701.0,87700.0,0.04494]
[1764037799330,0.0114065,87700.0,87698.0,0.06150431]
[1764037799630,0.04613803,87699.0,87698.0,0.06150431]
[1764037800029,0.04394,87694.0,87693.0,0.06150431]
[1764037800220,0.0553474,87693.0,87692.0,0.06150431]
[1764037800523,0.04394,87689.0,87688.0,0.06150431]
[1764037800724,0.04394,87687.0,87686.0,0.10580431]
[1764037801029,0.00219803,87687.0,87686.0,0.04503267]
[1764037801227,0.17171445,87710.0,87696.0,0.068837]
[1764037801228,0.0114052,87710.0,87696.0,0.068837]
[1764037801426,0.0114059,87705.0,87696.0,0.43036967]
[1764037801627,0.3608,87712.0,87696.0,0.43036967]
[1764037802128,0.00236908,87697.0,87696.0,0.41896267]
[1764037802524,0.04630908,87697.0,87696.0,0.40583267]
[1764037803920,0.00236908,87697.0,87696.0,0.41896267]
[1764037805620,0.00236908,87697.0,87696.0,0.40583267]
[1764037805822,0.04630908,87697.0,87696.0,0.40583267]
[1764037808933,0.068997,87696.0,87695.0,0.06147357]
[1764037809126,0.07119503,87696.0,87695.0,0.10650624]
[1764037809435,0.05754503,87696.0,87695.0,0.10650624]
[1764037811131,0.05754503,87696.0,87695.0,0.04503267]
[1764037812231,0.07041503,87696.0,87695.0,0.04503267]
[1764037812431,0.05754503,87696.0,87695.0,0.04503267]
[1764037812824,0.02487803,87696.0,87695.0,0.04503267]
[1764037813133,0.04741803,87696.0,87695.0,0.04503267]
[1764037813633,0.00219803,87696.0,87695.0,0.04503267]
[1764037814231,0.0572058,87705.0,87704.0,0.0551259]
[1764037814423,0.0572058,87705.0,87704.0,0.04591803]
[1764037826538,0.0700758,87705.0,87704.0,0.04591803]
[1764037828738,0.05867,87705.0,87704.0,0.04591803]
[1764037828944,0.0458,87705.0,87704.0,0.04591803]
[1764037834456,0.0572052,87710.0,87709.0,0.0114053]
[1764037834648,0.0572052,87710.0,87709.0,0.09835942]
[1764037834848,0.0700752,87710.0,87709.0,0.08695412]
[1764037835344,0.0700752,87710.0,87709.0,0.00219803]
[1764037835752,0.0710752,87710.0,87709.0,0.02472803]
[1764037835950,0.0710752,87710.0,87709.0,0.04591803]
[1764037837453,0.0710752,87710.0,87709.0,0.02472803]
[1764037837948,0.0710752,87710.0,87709.0,0.04591803]
[1764037838345,0.0710752,87710.0,87709.0,0.02472803]
[1764037838541,0.0710752,87710.0,87709.0,0.00219803]
[1764037838749,0.0710752,87710.0,87709.0,0.02472803]
[1764037839154,0.0710752,87710.0,87709.0,0.00219803]
[1764037840049,0.0458,87709.0,87708.0,0.06155968]
[1764037840258,0.0572054,87708.0,87707.0,0.06155968]
[1764037840554,0.0458,87706.0,87705.0,0.06155968]
[1764037842351,0.04316,87695.0,87694.0,0.04854803]
[1764037842755,0.04316,87688.0,87682.0,0.08167389]
[1764037842947,0.40396,87688.0,87687.0,0.06178528]
[1764037843252,0.58396,87688.0,87687.0,0.00017105]
[1764037843952,0.58396,87688.0,87687.0,0.04871908]
[1764037844159,0.04316,87688.0,87687.0,0.04871908]
[1764037845652,0.04316,87688.0,87687.0,0.11033331]
[1764037846361,0.054568,87688.0,87687.0,0.04871908]
[1764037847055,0.054568,87688.0,87687.0,0.00236908]
[1764037847956,0.054568,87688.0,87687.0,0.00017105]
[1764037848262,0.415368,87688.0,87687.0,0.00017105]
[1764037849161,0.415368,87688.0,87687.0,0.04113753]
[1764037851161,0.415368,87688.0,87687.0,0.00017105]
[1764037852166,0.0545684,87685.0,87684.0,0.00613753]
[1764037853159,0.04316,87675.0,87674.0,0.06161423]
[1764037853467,0.04316,87675.0,87664.0,0.08167389]
[1764037853468,0.04316,87672.0,87671.0,0.04635]
[1764037853767,0.05601,87672.0,87671.0,0.04854803]
[1764037854263,0.05601,87672.0,87671.0,0.04635]
[1764037855761,0.04316,87672.0,87671.0,0.04635]
[1764037856664,0.05696,87672.0,87671.0,0.04635]
[1764037859258,0.04316,87672.0,87671.0,0.04635]
[1764037860058,0.011411,87665.0,87664.0,0.06161423]
[1764037860260,0.0555714,87662.0,87661.0,0.06161423]
[1764037860560,0.0555723,87655.0,87654.0,0.10717423]
[1764037860869,0.0555723,87655.0,87654.0,0.04775803]
[1764037867166,0.04416,87651.0,87650.0,0.215]
[1764037867466,0.02113,87651.0,87650.0,0.26275803]
[1764037867671,0.20117,87651.0,87650.0,0.26056]
[1764037867876,0.60117,87651.0,87650.0,0.215]
[1764037868172,1.11525948,87651.0,87650.0,0.215]
[1764037869266,0.0114141,87641.0,87640.0,0.03067942]
[1764037869569,0.0114141,87641.0,87636.0,0.01269]
[1764037869570,0.0114145,87638.0,87636.0,0.01269]
[1764037869771,0.18008,87637.0,87636.0,0.01269]
[1764037869973,0.0114145,87638.0,87637.0,0.04556]
[1764037870157,0.0114145,87638.0,87637.0,0.04775803]
[1764037870367,0.1914945,87638.0,87637.0,0.04775803]
[1764037871258,0.18008,87638.0,87637.0,0.04775803]
[1764037871575,0.3608,87641.0,87637.0,0.04775803]
[1764037871576,0.3608,87641.0,87640.0,0.0446]
[1764037871770,0.54088,87641.0,87640.0,0.04679803]
[1764037872068,0.0114137,87645.0,87644.0,0.04883]
[1764037872270,0.0114137,87645.0,87644.0,0.05102803]
[1764037872271,0.1914937,87645.0,87644.0,0.05102803]
[1764037872466,0.00017115,87649.0,87648.0,0.04883]
[1764037872667,0.3608,87660.0,87659.0,0.04883]
[1764037872975,0.0114106,87668.0,87667.0,0.04883]
[1764037873162,0.0114106,87668.0,87667.0,0.05102803]
[1764037874285,0.18012,87670.0,87669.0,0.04883]
[1764037874571,0.18012,87670.0,87669.0,0.05102803]
[1764037877391,0.0114105,87669.0,87668.0,0.0166]
[1764037877577,0.4514105,87669.0,87668.0,0.0166]
[1764037878083,0.0114114,87662.0,87659.0,0.00017115]
[1764037878276,0.3608,87660.0,87659.0,0.05180115]
[1764037878476,0.6908,87660.0,87659.0,0.05180115]
[1764037879077,0.4208,87660.0,87659.0,0.05180115]
[1764037879681,0.4208,87660.0,87659.0,0.00017115]
[1764037879874,0.6808,87660.0,87659.0,0.00017115]
[1764037880675,0.3608,87660.0,87659.0,0.02555115]
[1764037880876,0.92092,87660.0,87659.0,0.05180115]
[1764037881178,0.92092,87660.0,87659.0,0.00017115]
[1764037883479,0.92092,87660.0,87659.0,5e-08]
[1764037884479,1.03499776,87660.0,87659.0,5e-08]
[1764037884674,0.0114141,87641.0,87640.0,0.01564]
[1764037884888,0.9923741,87641.0,87640.0,0.04102]
[1764037885080,0.9923741,87641.0,87640.0,0.04321803]
[1764037885283,0.9923741,87641.0,87640.0,0.06946803]
[1764037886583,0.9923741,87641.0,87640.0,0.01564]
[1764037887381,0.9923741,87641.0,87640.0,0.0107592]
[1764037887977,1.08328131,87641.0,87640.0,0.0107592]
[1764037889082,0.0114169,87620.0,87619.0,1.16e-06]
[1764037889277,0.011417,87619.0,87618.0,0.05163]
[1764037889581,0.191697,87619.0,87618.0,0.05163]
[1764037889773,0.591697,87619.0,87618.0,0.05163]
[1764037889979,0.591697,87619.0,87616.0,0.04102]
[1764037890274,0.191697,87619.0,87618.0,0.05163]
[1764037890477,0.561697,87619.0,87616.0,0.01564]
[1764037890678,0.0114173,87617.0,87616.0,0.04102]
[1764037890882,0.38154935,87617.0,87616.0,0.04102]
[1764037891077,0.01154935,87617.0,87616.0,0.06946803]
[1764037891284,0.19186935,87617.0,87616.0,0.06946803]
[1764037892279,0.30687105,87617.0,87616.0,0.06727]
[1764037892489,0.5627373,87617.0,87616.0,0.06727]
[1764037892894,0.67687105,87617.0,87616.0,0.06727]
[1764037893392,0.0114183,87609.0,87608.0,0.06727]
[1764037893687,0.64233272,87609.0,87608.0,0.06727]
[1764037894086,0.64233272,87609.0,87608.0,0.08303243]
[1764037894286,0.64233272,87609.0,87608.0,0.05678243]
[1764037894592,0.64233272,87609.0,87608.0,0.03140243]
[1764037894787,0.6422183,87609.0,87608.0,0.03140243]
[1764037895187,0.65379844,87609.0,87608.0,0.03140243]
[1764037895599,0.65379844,87609.0,87608.0,0.04140243]
[1764037896090,0.0114193,87601.0,87600.0,0.06937973]
[1764037896290,1.01260549,87601.0,87600.0,0.06937973]
[1764037896489,0.67260549,87601.0,87600.0,0.06937973]
[1764037896795,0.67260549,87601.0,87600.0,0.07157776]
[1764037897089,0.67260549,87601.0,87600.0,0.08157779]
[1764037897388,0.67260549,87601.0,87583.0,0.3608]
[1764037897389,0.0114223,87579.0,87578.0,0.05163]
[1764037897585,0.00231363,87579.0,87578.0,0.05236267]
[1764037897783,0.18283363,87579.0,87578.0,0.05236267]
[1764037898789,0.00231363,87579.0,87578.0,0.05236267]
[1764037899477,0.00231363,87579.0,87578.0,0.02562689]
[1764037899678,0.00231363,87579.0,87578.0,0.05100689]
[1764037899879,0.00219803,87579.0,87578.0,0.05100689]
[1764037900086,0.00219803,87579.0,87578.0,0.05173956]
[1764037900390,0.1828473,87579.0,87578.0,0.05173956]
[1764037900979,0.18275803,87579.0,87578.0,0.05173956]
[1764037901187,0.18289142,87579.0,87578.0,0.05198267]
[1764037901593,0.00233142,87579.0,87578.0,0.05198267]
[1764037901783,0.18293142,87579.0,87578.0,0.05198267]
[1764037901980,0.00233142,87579.0,87578.0,0.05198267]
[1764037902184,0.18293142,87579.0,87578.0,0.05198267]
[1764037902889,0.18293142,87579.0,87560.0,0.01564]
[1764037902890,0.7169813,87579.0,87560.0,0.01564]
[1764037903095,0.011424,87566.0,87565.0,0.05982]
[1764037903284,0.19437303,87566.0,87565.0,0.06055267]
[1764037904092,0.19437293,87566.0,87565.0,0.06055267]
[1764037904388,0.19437293,87566.0,87558.0,0.3608]
[1764037904389,0.0114248,87559.0,87558.0,0.3608]
[1764037904581,0.15374102,87559.0,87557.0,0.05991545]
[1764037904792,0.01374102,87559.0,87558.0,0.05982]
[1764037905188,0.01374102,87559.0,87557.0,9.545e-05]
[1764037905387,0.00011845,87558.0,87557.0,9.545e-05]
[1764037905694,0.11231648,87558.0,87557.0,9.545e-05]
[1764037905882,0.00231648,87558.0,87557.0,0.03404545]
[1764037906087,0.19231648,87558.0,87557.0,0.03404545]
[1764037906287,0.19231648,87558.0,87552.0,0.04959]
[1764037906288,0.0114256,87553.0,87552.0,0.04959]
[1764037906488,0.78519702,87553.0,87552.0,0.04959]
[1764037907002,0.78519702,87553.0,87552.0,0.07546]
[1764037907003,0.36313142,87553.0,87552.0,0.07546]
[1764037907404,0.54377142,87553.0,87552.0,0.07546]
[1764037907899,0.36313142,87553.0,87552.0,0.07546]
[1764037908088,0.54385142,87553.0,87552.0,0.07546]
[1764037908398,0.54389142,87553.0,87552.0,0.07546]
[1764037910502,0.55531702,87553.0,87552.0,0.07546]
[1764037910900,0.54389142,87553.0,87552.0,0.07546]
[1764037911496,0.55531702,87553.0,87552.0,0.07546]
[1764037911801,0.18309142,87553.0,87552.0,0.07546]
[1764037912190,0.00233142,87553.0,87552.0,0.07546]
[1764037912590,0.00013339,87553.0,87552.0,0.07546]
[1764037912795,0.01159505,87567.0,87566.0,0.05982]
[1764037913105,0.01379308,87567.0,87566.0,0.05982]
[1764037913398,0.37459308,87567.0,87566.0,0.05982]
[1764037914104,0.36316928,87567.0,87566.0,0.05982]
[1764037914299,0.36316928,87567.0,87560.0,0.20483]
[1764037914300,0.0918459,87567.0,87560.0,0.20483]
[1764037914494,0.0114266,87545.0,87543.0,0.01921]
[1764037914799,0.0114273,87541.0,87540.0,0.02587]
[1764037915002,0.01362533,87541.0,87540.0,0.05982]
[1764037915203,0.01362533,87541.0,87540.0,0.07903]
[1764037915405,0.73522533,87541.0,87540.0,0.07903]
[1764037915601,0.73522533,87541.0,87540.0,0.05316]
[1764037915994,0.73522533,87541.0,87540.0,0.01921]
[1764037916197,0.73522533,87541.0,87540.0,0.0997]
[1764037922904,0.72379803,87541.0,87540.0,0.0997]
[1764037923909,0.64728,87541.0,87540.0,0.0997]
[1764037924103,0.21216,87541.0,87540.0,0.0997]
[1764037924309,0.2235872,87541.0,87540.0,0.14051396]
[1764037925114,0.2235872,87541.0,87540.0,0.0997]
[1764037926806,0.22578523,87541.0,87540.0,0.0997]
[1764037930113,0.22578523,87541.0,87540.0,0.14059009]
[1764037930815,0.22578523,87541.0,87540.0,0.0997]
[1764037931006,0.21435803,87541.0,87540.0,0.1111273]
[1764037931201,0.00017135,87549.0,87540.0,0.1111273]
[1764037931202,0.01159745,87549.0,87548.0,0.09534]
[1764037931611,0.01379548,87549.0,87548.0,0.09534]
[1764037932711,0.00017135,87549.0,87548.0,0.09534]
[1764037933511,0.00236938,87549.0,87548.0,0.27638]
[1764037934216,0.00017135,87549.0,87548.0,0.2878063]
[1764037934517,0.01159745,87549.0,87548.0,0.27638]
[1764037936019,0.01379548,87549.0,87548.0,0.27638]
[1764037936922,0.01159745,87549.0,87548.0,0.33790547]
[1764037937221,0.3608,87555.0,87554.0,0.09534]
[1764037938022,0.0114253,87556.0,87555.0,0.1067653]
[1764037938211,0.0114253,87556.0,87555.0,0.16828186]